bitfinex/quotes_BTCUSD_20250218
["timestamp","ask_amount","ask_price","bid_price","bid_amount"]
[1739845540796,0.0001317,96376.0,96373.0,0.0492883]
[1739845541132,0.0031317,96376.0,96373.0,0.0492883]
[1739845541496,0.0051317,96376.0,96373.0,0.0492883]
[1739845541684,0.0051317,96376.0,96374.0,0.05421743]
[1739845542623,0.0031317,96376.0,96374.0,0.05421743]
[1739845542981,0.0051317,96376.0,96374.0,0.05421743]
[1739845543185,0.0021317,96376.0,96374.0,0.05421743]
[1739845543632,0.0051317,96376.0,96374.0,0.05421743]
[1739845543953,0.0051317,96376.0,96375.0,0.04980994]
[1739845544294,0.0051317,96376.0,96371.0,0.0807]
[1739845544492,0.0051317,96376.0,96371.0,0.236347]
[1739845544696,0.0051317,96376.0,96372.0,0.155646]
[1739845544906,0.0051317,96376.0,96373.0,0.155645]
[1739845544907,0.0021317,96376.0,96373.0,0.155645]
[1739845545105,0.0051317,96376.0,96374.0,0.155643]
[1739845545387,0.0031317,96376.0,96375.0,0.0651406]
[1739845545589,0.0031317,96376.0,96372.0,0.155645]
[1739845545935,0.0051317,96376.0,96372.0,0.155645]
[1739845546364,0.0021317,96376.0,96372.0,0.155645]
[1739845546580,0.0051317,96376.0,96372.0,0.155645]
[1739845546784,0.0051317,96376.0,96373.0,0.0700418]
[1739845547408,0.0051317,96376.0,96373.0,0.2256868]
[1739845547621,0.0051317,96376.0,96373.0,0.0700418]
[1739845547841,0.0001317,96376.0,96373.0,0.0700418]
[1739845548037,0.0001317,96376.0,96371.0,0.0807]
[1739845548255,0.0051317,96376.0,96371.0,0.0807]
[1739845548457,0.0031317,96376.0,96372.0,0.155646]
[1739845548669,0.0051317,96376.0,96373.0,0.155644]
[1739845548877,0.0051317,96376.0,96374.0,0.2049307]
[1739845549076,0.0031317,96376.0,96374.0,0.0492877]
[1739845549297,0.0051317,96376.0,96374.0,0.155643]
[1739845549675,0.0031317,96376.0,96374.0,0.155643]
[1739845549932,0.0001317,96376.0,96374.0,0.155643]
[1739845550126,0.0001317,96376.0,96375.0,0.155642]
[1739845550448,0.0031317,96376.0,96375.0,0.155642]
[1739845550654,0.0031317,96376.0,96372.0,0.2412527]
[1739845550865,0.0031317,96376.0,96374.0,0.155642]
[1739845551012,0.0001317,96376.0,96374.0,0.155642]
[1739845551218,0.0051317,96376.0,96375.0,0.04779349]
[1739845551537,0.0031317,96376.0,96375.0,0.04779349]
[1739845551880,0.0021317,96376.0,96375.0,0.04779349]
[1739845552120,0.0021317,96376.0,96375.0,0.20343549]
[1739845552533,0.0021317,96376.0,96375.0,0.04779349]
[1739845553054,0.0051317,96376.0,96375.0,0.20343549]
[1739845553514,0.0051317,96376.0,96375.0,0.04779349]
[1739845553721,0.0021317,96376.0,96375.0,0.20343549]
[1739845553870,0.0051317,96376.0,96375.0,0.30593914]
[1739845558803,0.0051317,96376.0,96375.0,0.38793914]
[1739845562489,0.0051317,96376.0,96375.0,0.43453914]
[1739845562915,0.0021317,96376.0,96375.0,0.43453914]
[1739845563719,0.0001317,96376.0,96375.0,0.43453914]
[1739845566002,0.0001317,96376.0,96375.0,0.76303914]
[1739845566344,0.0001317,96376.0,96375.0,0.76703914]
[1739845567301,0.0001317,96376.0,96375.0,0.77003914]
[1739845570296,0.0001317,96376.0,96375.0,0.61439714]
[1739845573078,0.0001317,96376.0,96375.0,0.61473754]
[1739845581381,0.0001317,96376.0,96375.0,0.77037954]
[1739845625652,0.03723953,96395.0,96387.0,0.155621]
[1739845625887,0.03723953,96395.0,96388.0,0.27368675]
[1739845626287,0.03723953,96395.0,96389.0,0.155619]
[1739845626549,0.03723953,96395.0,96389.0,0.25812265]
[1739845627051,0.04023953,96395.0,96389.0,0.25812265]
[1739845627292,0.04023953,96395.0,96390.0,0.05592848]
[1739845627493,0.03723953,96395.0,96390.0,0.05592848]
[1739845627901,0.04023953,96395.0,96390.0,0.05592848]
[1739845628080,0.07381745,96395.0,96390.0,0.05592848]
[1739845628483,0.07081745,96395.0,96390.0,0.05592848]
[1739845628680,0.07381745,96395.0,96391.0,0.02843775]
[1739845628881,0.07681745,96395.0,96391.0,0.02843775]
[1739845629087,0.155611,96394.0,96391.0,0.02843775]
[1739845629288,0.07681745,96395.0,96391.0,0.02843775]
[1739845629515,0.07681745,96395.0,96389.0,0.10250365]
[1739845629905,0.07381745,96395.0,96389.0,0.10250365]
[1739845630246,0.07681745,96395.0,96389.0,0.10250365]
[1739845630453,0.07381745,96395.0,96389.0,0.10250365]
[1739845630904,0.155617,96390.0,96389.0,0.10250365]
[1739845631099,0.155619,96389.0,96379.0,0.155635]
[1739845631316,0.155619,96389.0,96380.0,0.10250365]
[1739845631480,0.207486,96392.0,96380.0,0.10250365]
[1739845632093,0.155616,96391.0,96380.0,0.25813665]
[1739845632296,0.155618,96390.0,96381.0,0.10249376]
[1739845632501,0.001,96389.0,96381.0,0.20499741]
[1739845633786,0.155618,96390.0,96381.0,0.20499741]
[1739845633951,0.001,96389.0,96381.0,0.20499741]
[1739845634589,0.002,96389.0,96381.0,0.20499741]
[1739845634748,0.002,96389.0,96382.0,0.04522806]
[1739845636115,0.001,96389.0,96382.0,0.04522806]
[1739845636316,0.156619,96389.0,96382.0,0.04522806]
[1739845636496,0.157619,96389.0,96382.0,0.04522806]
[1739845636700,0.156619,96389.0,96382.0,0.04522806]
[1739845636913,0.156619,96389.0,96383.0,0.05873877]
[1739845637100,0.157619,96389.0,96383.0,0.05873877]
[1739845637924,0.155619,96389.0,96383.0,0.05873877]
[1739845638152,0.156619,96389.0,96383.0,0.05873877]
[1739845638383,0.001,96389.0,96381.0,0.10250365]
[1739845638585,0.208492,96389.0,96381.0,0.10250365]
[1739845638786,0.155621,96388.0,96381.0,0.10250365]
[1739845638922,0.155621,96388.0,96381.0,0.10201652]
[1739845639333,0.157619,96389.0,96381.0,0.10201652]
[1739845639529,0.002,96389.0,96381.0,0.10201652]
[1739845639738,0.001,96389.0,96382.0,0.09171149]
[1739845639949,0.001,96388.0,96382.0,0.09171149]
[1739845640366,0.155619,96389.0,96382.0,0.09171149]
[1739845640863,0.157619,96389.0,96382.0,0.09171149]
[1739845641016,0.156619,96389.0,96382.0,0.09171149]
[1739845641218,0.156619,96389.0,96383.0,0.0425865]
[1739845641449,0.001,96388.0,96383.0,0.0425865]
[1739845641665,0.156619,96389.0,96383.0,0.0425865]
[1739845641880,0.155621,96388.0,96383.0,0.0425865]
[1739845642656,0.002,96389.0,96381.0,0.10201652]
[1739845643011,0.155621,96388.0,96381.0,0.10201652]
[1739845643442,0.156621,96388.0,96381.0,0.10201652]
[1739845643686,0.157621,96388.0,96381.0,0.10201652]
[1739845643935,0.155621,96388.0,96382.0,0.0003404]
[1739845644188,0.156621,96388.0,96382.0,0.0003404]
[1739845644416,0.002,96388.0,96382.0,0.0003404]
[1739845645144,0.001,96388.0,96382.0,0.0003404]
[1739845645369,0.157621,96388.0,96382.0,0.09208583]
[1739845645561,0.156621,96388.0,96382.0,0.09208583]
[1739845645755,0.157621,96388.0,96382.0,0.09208583]
[1739845646825,0.155622,96387.0,96382.0,0.09208583]
[1739845647332,0.155622,96387.0,96382.0,0.0003404]
[1739845647671,0.001,96388.0,96382.0,0.0003404]
[1739845647872,0.156622,96387.0,96382.0,0.0003404]
[1739845648836,0.155626,96385.0,96382.0,0.0003404]
[1739845649042,0.156622,96387.0,96382.0,0.0003404]
[1739845649802,0.155622,96388.0,96382.0,0.0003404]
[1739845650412,0.155619,96389.0,96382.0,0.0003404]
[1739845650785,0.155621,96388.0,96382.0,0.0003404]
[1739845650952,0.156621,96388.0,96382.0,0.0003404]
[1739845651371,0.156621,96388.0,96382.0,0.07133413]
[1739845651615,0.001,96388.0,96382.0,0.07133413]
[1739845651819,0.002,96388.0,96383.0,0.0752]
[1739845652833,0.156621,96388.0,96383.0,0.0752]
[1739845653030,0.002,96388.0,96384.0,0.0494]
[1739845653205,0.001,96388.0,96385.0,0.0796]
[1739845653604,0.002,96388.0,96385.0,0.0796]
[1739845654521,0.001,96388.0,96385.0,0.0796]
[1739845654815,0.15,96399.0,96385.0,0.0796]
[1739845655176,0.155611,96394.0,96386.0,0.05713468]
[1739845655316,0.001,96388.0,96386.0,0.05713468]
[1739845655521,0.002,96388.0,96386.0,0.05713468]
[1739845655985,0.001,96388.0,96386.0,0.05713468]
[1739845656682,0.0001702,96390.0,96386.0,0.05713468]
[1739845656912,0.0001702,96390.0,96387.0,0.05164215]
[1739845657642,0.001,96388.0,96387.0,0.05164215]
[1739845658891,0.0011702,96390.0,96387.0,0.05164215]
[1739845659095,0.0021702,96390.0,96387.0,0.05164215]
[1739845659338,0.0021702,96390.0,96385.0,0.0796]
[1739845659538,0.0021702,96390.0,96385.0,0.18210365]
[1739845659775,0.0011702,96390.0,96385.0,0.18210365]
[1739845660192,0.001,96388.0,96385.0,0.18210365]
[1739845660400,0.0011702,96390.0,96385.0,0.18210365]
[1739845660625,0.0001702,96390.0,96386.0,0.06149149]
[1739845660846,0.0011702,96390.0,96385.0,0.18210365]
[1739845661295,0.001,96388.0,96385.0,0.18210365]
[1739845661735,0.0011702,96390.0,96385.0,0.18210365]
[1739845662185,0.0001702,96390.0,96385.0,0.18210365]
[1739845662426,0.0011702,96390.0,96385.0,0.18210365]
[1739845662908,0.0011702,96390.0,96386.0,0.05953215]
[1739845663149,0.0021702,96390.0,96386.0,0.05953215]
[1739845663383,0.0011702,96390.0,96385.0,0.18210365]
[1739845663607,0.0021702,96390.0,96385.0,0.18210365]
[1739845663857,0.0011702,96390.0,96385.0,0.18210365]
[1739845664595,0.0021702,96390.0,96385.0,0.18210365]
[1739845664802,0.0011702,96390.0,96385.0,0.18210365]
[1739845665207,0.0011702,96390.0,96386.0,0.05953255]
[1739845666020,0.0001702,96390.0,96386.0,0.05953255]
[1739845666426,0.0011702,96390.0,96385.0,0.18210365]
[1739845666629,0.0001702,96390.0,96385.0,0.18210365]
[1739845667454,0.0021702,96390.0,96385.0,0.18210365]
[1739845667853,0.0001702,96390.0,96385.0,0.18210365]
[1739845668054,0.0011702,96390.0,96385.0,0.18210365]
[1739845668258,0.0021702,96390.0,96385.0,0.18210365]
[1739845668700,0.0021702,96390.0,96386.0,0.04396944]
[1739845668891,0.0021702,96390.0,96385.0,0.33772865]
[1739845669214,0.0021702,96390.0,96385.0,0.18210365]
[1739845673332,0.0021702,96390.0,96386.0,0.10250365]
[1739845673532,0.0021702,96390.0,96386.0,0.25812765]
[1739845674252,0.0011702,96390.0,96387.0,0.05953105]
[1739845674457,0.0011702,96390.0,96386.0,0.10250365]
[1739845674639,0.0021702,96390.0,96386.0,0.10250365]
[1739845675043,0.0011702,96390.0,96386.0,0.10250365]
[1739845675360,0.0021702,96390.0,96386.0,0.10250365]
[1739845677523,0.0011702,96390.0,96386.0,0.10250365]
[1739845677722,0.0021702,96390.0,96386.0,0.10250365]
[1739845683495,0.0021702,96390.0,96386.0,0.18282073]
[1739845683695,0.0021702,96390.0,96386.0,0.33844473]
[1739845683870,0.0021702,96390.0,96386.0,0.18282073]
[1739845688510,0.0021702,96390.0,96386.0,0.10250365]
[1739845689787,0.03395439,96395.0,96386.0,0.10250365]
[1739845689989,0.155612,96394.0,96386.0,0.10250365]
[1739845692283,0.155612,96394.0,96386.0,0.10284405]
[1739845692490,0.15769396,96394.0,96386.0,0.10284405]
[1739845692802,0.16069396,96394.0,96386.0,0.10284405]
[1739845692993,0.00508196,96394.0,96386.0,0.10284405]
[1739845693498,0.16069396,96394.0,96386.0,0.10284405]
[1739845695519,0.155613,96393.0,96386.0,0.10284405]
[1739845696521,0.15769296,96394.0,96386.0,0.10284405]
[1739845696721,0.002,96393.0,96386.0,0.10284405]
[1739845696922,0.004,96393.0,96386.0,0.10284405]
[1739845697350,0.002,96393.0,96386.0,0.10284405]
[1739845697968,0.15769296,96394.0,96386.0,0.10284405]
[1739845698165,0.155613,96393.0,96386.0,0.10284405]
[1739845699320,0.157613,96393.0,96386.0,0.10284405]
[1739845700251,0.159613,96393.0,96386.0,0.10284405]
[1739845701633,0.004,96393.0,96386.0,0.10284405]
[1739845701994,0.155614,96392.0,96386.0,0.10284405]
[1739845703351,0.155616,96391.0,96386.0,0.10284405]
[1739845703554,0.15562,96389.0,96386.0,0.10284405]
[1739845703845,0.155617,96391.0,96386.0,0.10284405]
[1739845704489,0.155618,96390.0,96386.0,0.10284405]
[1739845704803,0.002,96392.0,96386.0,0.10284405]
[1739845705139,0.155616,96391.0,96386.0,0.10284405]
[1739845705329,0.001,96389.0,96386.0,0.10284405]
[1739845705506,0.207486,96392.0,96386.0,0.10284405]
[1739845705707,0.00025216,96394.0,96386.0,0.10284405]
[1739845705708,0.155613,96393.0,96386.0,0.10284405]
[1739845705904,0.157614,96392.0,96386.0,0.10284405]
[1739845706104,0.002,96391.0,96386.0,0.10284405]
[1739845706516,0.001,96389.0,96386.0,0.10284405]
[1739845706912,0.155614,96392.0,96386.0,0.10284405]
[1739845707617,0.001,96389.0,96386.0,0.10284405]
[1739845708828,0.002,96389.0,96386.0,0.10284405]
[1739845709054,0.001,96389.0,96386.0,0.10284405]
[1739845709456,0.001,96389.0,96387.0,0.0803]
[1739845709756,0.001,96389.0,96388.0,0.03891972]
[1739845710278,0.002,96389.0,96388.0,0.03891972]
[1739845710815,0.001,96389.0,96388.0,0.03891972]
[1739845711182,0.002,96389.0,96388.0,0.03891972]
[1739845711381,0.001,96389.0,96388.0,0.03891972]
[1739845711790,0.002,96389.0,96388.0,0.03891972]
[1739845712689,0.001,96389.0,96388.0,0.03891972]
[1739845712886,0.002,96389.0,96388.0,0.03891972]
[1739845713319,0.002,96389.0,96387.0,0.0803]
[1739845714387,0.155615,96392.0,96387.0,0.0803]
[1739845714727,0.001,96389.0,96387.0,0.0803]
[1739845715090,0.002,96389.0,96387.0,0.0803]
[1739845718688,0.002,96389.0,96387.0,0.0806406]
[1739845734708,0.002,96389.0,96387.0,0.2362626]
[1739845734919,0.002,96389.0,96387.0,0.14034389]
[1739845735535,0.002,96389.0,96387.0,0.0806406]
[1739845740476,0.002,96389.0,96387.0,0.2362626]
[1739845741489,0.002,96389.0,96387.0,0.0806406]
[1739845742709,0.002,96389.0,96387.0,0.2362626]
[1739845743628,0.002,96389.0,96387.0,0.0806406]
[1739845744725,0.002,96389.0,96388.0,0.155621]
[1739845744931,0.002,96389.0,96388.0,0.23607449]
[1739845745518,0.001,96389.0,96388.0,0.08045349]
[1739845745731,0.001,96389.0,96388.0,0.23607449]
[1739845745956,0.002,96389.0,96388.0,0.08045349]
[1739845746575,0.001,96389.0,96388.0,0.08045349]
[1739845746801,0.001,96389.0,96387.0,0.2362626]
[1739845747005,0.002,96389.0,96387.0,0.0806406]
[1739845747756,0.001,96389.0,96387.0,0.0806406]
[1739845747928,0.002,96389.0,96388.0,0.155621]
[1739845748139,0.001,96389.0,96388.0,0.155621]
[1739845748343,0.002,96389.0,96387.0,0.0806406]
[1739845749076,0.001,96389.0,96387.0,0.0806406]
[1739845749465,0.002,96389.0,96387.0,0.0806406]
[1739845749809,0.155614,96392.0,96387.0,0.0806406]
[1739845749958,0.001,96389.0,96387.0,0.0806406]
[1739845750268,0.002,96389.0,96387.0,0.0806406]
[1739845750478,0.001,96389.0,96387.0,0.0806406]
[1739845750874,0.002,96389.0,96387.0,0.0806406]
[1739845769455,0.155621,96388.0,96387.0,0.0806406]
[1739845770707,0.156621,96388.0,96387.0,0.0806406]
[1739845771552,0.157621,96388.0,96387.0,0.0806406]
[1739845774744,0.002,96388.0,96387.0,0.0806406]
[1739845774952,0.157621,96388.0,96387.0,0.0806406]
[1739845783163,0.207485,96393.0,96387.0,0.0806406]
[1739845783639,0.155621,96388.0,96387.0,0.0806406]
[1739845785419,0.155618,96390.0,96387.0,0.0806406]
[1739845785810,0.001,96388.0,96387.0,0.0806406]
[1739845786217,0.155619,96389.0,96387.0,0.0806406]
[1739845786632,0.002,96390.0,96387.0,0.0806406]
[1739845787039,0.155621,96388.0,96387.0,0.0806406]
[1739845787442,0.157619,96390.0,96387.0,0.0806406]
[1739845787817,0.156619,96390.0,96387.0,0.0806406]
[1739845788210,0.15662,96389.0,96387.0,0.0806406]
[1739845788639,0.15562,96389.0,96387.0,0.0806406]
[1739845788833,0.001,96390.0,96387.0,0.0806406]
[1739845789267,0.002,96390.0,96387.0,0.09378082]
[1739845789505,0.156618,96390.0,96387.0,0.09378082]
[1739845789704,0.001,96389.0,96387.0,0.0806406]
[1739845791231,0.001,96390.0,96387.0,0.0806406]
[1739845791423,0.002,96390.0,96387.0,0.0806406]
[1739845791907,0.001,96390.0,96387.0,0.0806406]
[1739845792103,0.155614,96392.0,96387.0,0.0806406]
[1739845792236,0.001,96389.0,96388.0,0.03389072]
[1739845793111,0.155613,96393.0,96388.0,0.03389072]
[1739845793324,0.001,96390.0,96388.0,0.03389072]
[1739845793966,0.001,96390.0,96387.0,0.0806406]
[1739845794871,0.155614,96392.0,96387.0,0.0806406]
[1739845795079,0.002,96389.0,96387.0,0.0806406]
[1739845795507,0.001,96389.0,96387.0,0.0806406]
[1739845795715,0.001,96390.0,96387.0,0.0806406]
[1739845796271,0.001,96389.0,96387.0,0.0806406]
[1739845796525,0.155613,96393.0,96388.0,0.04945362]
[1739845796756,0.155613,96393.0,96387.0,0.0806406]
[1739845797245,0.0354517,96395.0,96387.0,0.0806406]
[1739845797510,0.155615,96392.0,96387.0,0.0806406]
[1739845797709,0.001,96389.0,96387.0,0.0806406]
[1739845798166,0.155613,96393.0,96387.0,0.0806406]
[1739845798486,0.155614,96392.0,96387.0,0.0806406]
[1739845798929,0.001,96389.0,96387.0,0.0806406]
[1739845799250,0.002,96393.0,96387.0,0.0806406]
[1739845799473,0.157613,96393.0,96387.0,0.13009392]
[1739845799712,0.002,96392.0,96387.0,0.13009392]
[1739845799927,0.002,96392.0,96387.0,0.0806406]
[1739845801058,0.157615,96392.0,96387.0,0.0806406]
[1739845801257,0.001,96389.0,96387.0,0.0806406]
[1739845801932,0.155615,96392.0,96387.0,0.0806406]
[1739845802228,0.155616,96391.0,96387.0,0.0806406]
[1739845802859,0.0021703,96392.0,96387.0,0.0806406]
[1739845803091,0.1577843,96392.0,96387.0,0.0806406]
[1739845803690,0.0021703,96392.0,96388.0,0.20507322]
[1739845803908,0.001,96389.0,96388.0,0.04945322]
[1739845804311,0.002,96389.0,96388.0,0.04945322]
[1739845804522,0.0001703,96392.0,96388.0,0.04945322]
[1739845804719,0.0001703,96392.0,96391.0,0.155616]
[1739845804889,0.0041703,96392.0,96391.0,0.38451965]
[1739845805298,0.0001703,96392.0,96391.0,0.38451965]
[1739845805493,0.0001703,96392.0,96391.0,0.8385233]
[1739845805872,0.0001703,96392.0,96391.0,1.3773233]
[1739845806329,0.00043886,96406.0,96405.0,0.279193]
[1739845806501,0.00043886,96406.0,96405.0,0.40469665]
[1739845808139,0.00143886,96406.0,96405.0,0.41169665]
[1739845808337,0.00143886,96406.0,96405.0,0.45691482]
[1739845808574,0.00243886,96406.0,96405.0,0.46291482]
[1739845812510,0.00243886,96406.0,96405.0,0.79141482]
[1739845814153,0.00260906,96406.0,96405.0,0.79141482]
[1739845815122,0.0001702,96434.0,96433.0,0.236148]
[1739845815357,0.00023847,96434.0,96433.0,0.33865165]
[1739845815601,0.03098213,96434.0,96433.0,0.33865165]
[1739845815817,0.00023847,96434.0,96433.0,0.33865165]
[1739845816075,0.03175411,96434.0,96433.0,0.33865165]
[1739845816305,0.00023847,96434.0,96433.0,0.38386982]
[1739845816485,0.00423847,96434.0,96433.0,0.38386982]
[1739845816958,0.00023847,96434.0,96433.0,0.38386982]
[1739845817424,0.00023847,96434.0,96433.0,0.38886982]
[1739845818287,0.00023847,96434.0,96433.0,0.39286982]
[1739845818519,0.03152344,96434.0,96433.0,0.39286982]
[1739845818955,0.00023847,96434.0,96433.0,0.39286982]
[1739845820099,0.00023847,96434.0,96433.0,0.009]
[1739845820100,0.18656812,96434.0,96433.0,0.009]
[1739845820309,0.15578447,96434.0,96433.0,0.009]
[1739845820498,0.1865958,96434.0,96433.0,0.009]
[1739845820673,2.2639938,96434.0,96433.0,0.009]
[1739845820845,2.3382958,96434.0,96433.0,0.004]
[1739845821046,2.3382958,96434.0,96433.0,0.007]
[1739845821514,2.3382958,96434.0,96433.0,0.003]
[1739845823104,0.155561,96425.0,96421.0,0.0484]
[1739845823287,0.155561,96425.0,96422.0,0.0286777]
[1739845823533,0.155563,96424.0,96422.0,0.0286777]
[1739845824656,0.155563,96424.0,96422.0,0.0326777]
[1739845825639,0.15556,96426.0,96422.0,0.0326777]
[1739845826054,0.15556,96426.0,96422.0,0.0366777]
[1739845826709,0.15556,96426.0,96422.0,0.0326777]
[1739845826906,0.15556,96426.0,96423.0,0.04219563]
[1739845827733,0.0310498,96434.0,96423.0,0.04219563]
[1739845827938,0.15556,96426.0,96423.0,0.04219563]
[1739845828356,0.155558,96427.0,96423.0,0.04619563]
[1739845828609,0.155558,96427.0,96424.0,0.04354703]
[1739845829828,0.155561,96425.0,96424.0,0.04354703]
[1739845830022,0.155559,96427.0,96424.0,0.04354703]
[1739845830239,0.2074,96432.0,96424.0,0.04354703]
[1739845830474,0.15556,96426.0,96424.0,0.04354703]
[1739845830599,0.15556,96426.0,96424.0,0.04754703]
[1739845830819,0.15556,96426.0,96424.0,0.05154703]
[1739845831312,0.155558,96427.0,96424.0,0.05154703]
[1739845831526,0.155558,96427.0,96424.0,0.04754703]
[1739845831720,0.155558,96427.0,96424.0,0.04354703]
[1739845831924,0.155558,96427.0,96424.0,0.04754703]
[1739845832124,0.207406,96430.0,96424.0,0.04754703]
[1739845832125,0.207397,96433.0,96424.0,0.04754703]
[1739845832330,0.15556,96426.0,96424.0,0.04754703]
[1739845832783,0.15556,96426.0,96424.0,0.004]
[1739845833193,0.15556,96426.0,96424.0,0.006]
[1739845833583,0.155561,96425.0,96424.0,0.004]
[1739845833812,0.10883226,96434.0,96421.0,0.15090365]
[1739845834019,0.155562,96425.0,96424.0,0.008]
[1739845834414,0.155562,96425.0,96422.0,0.03892806]
[1739845834610,0.207409,96428.0,96422.0,0.03892806]
[1739845834611,0.155559,96426.0,96422.0,0.03892806]
[1739845834806,0.155561,96425.0,96424.0,0.009]
[1739845835007,0.155561,96425.0,96424.0,0.005]
[1739845835388,0.155561,96425.0,96424.0,0.009]
[1739845836022,0.155561,96425.0,96424.0,0.004]
[1739845836482,1.657668,96425.0,96424.0,0.004]
[1739845836856,0.305564,96423.0,96422.0,0.004]
[1739845837041,0.155591,96406.0,96400.0,0.3285]
[1739845837251,0.155591,96406.0,96397.0,0.0796]
[1739845837252,2.451686,96406.0,96397.0,0.0796]
[1739845837724,2.451686,96406.0,96392.0,0.0815]
[1739845838750,2.452686,96406.0,96392.0,0.0815]
[1739845838959,2.451686,96406.0,96392.0,0.0815]
[1739845839802,2.452686,96406.0,96392.0,0.0815]
[1739845840455,2.453686,96406.0,96392.0,0.0815]
[1739845841602,2.65482629,96406.0,96392.0,0.0815]
[1739845844660,0.71123029,96406.0,96392.0,0.0815]
[1739845845167,2.65482629,96406.0,96392.0,0.0815]
[1739845848700,0.71123029,96406.0,96392.0,0.0815]
[1739845849159,2.50301363,96406.0,96392.0,0.0815]
[1739845849364,0.55563929,96406.0,96392.0,0.0815]
[1739845849569,2.49923529,96406.0,96392.0,0.0815]
[1739845849782,2.65482629,96406.0,96392.0,0.0815]
[1739845853097,2.80482629,96406.0,96392.0,0.0815]
[1739845854276,0.155612,96393.0,96392.0,0.0815]
[1739845855495,0.155612,96393.0,96392.0,0.08193886]
[1739845856321,0.155612,96393.0,96392.0,0.08593886]
[1739845856617,0.155612,96393.0,96392.0,0.08893886]
[1739845858175,0.207476,96397.0,96392.0,0.08893886]
[1739845858363,1.484836,96396.0,96392.0,0.08893886]
[1739845858586,1.468501,96396.0,96392.0,0.08893886]
[1739845858796,0.352499,96395.0,96392.0,0.08893886]
[1739845859028,1.185644,96395.0,96392.0,0.08493886]
[1739845859231,1.469043,96396.0,96392.0,0.08493886]
[1739845859460,0.352499,96394.0,96392.0,0.08393886]
[1739845859656,0.352499,96395.0,96392.0,0.08393886]
[1739845859878,0.155612,96393.0,96392.0,0.08393886]
[1739845860076,0.155612,96393.0,96392.0,0.08693886]
[1739845860718,0.155612,96393.0,96392.0,0.08527926]
[1739845860918,0.155612,96393.0,96392.0,0.08827926]
[1739845861341,0.155612,96393.0,96392.0,0.08527926]
[1739845861540,0.155612,96393.0,96392.0,0.08227926]
[1739845861751,0.155612,96393.0,96392.0,0.08627926]
[1739845862380,0.155612,96393.0,96392.0,0.08227926]
[1739845862596,0.155612,96393.0,96392.0,0.08527926]
[1739845863027,0.155612,96393.0,96392.0,0.08227926]
[1739845863526,0.155612,96393.0,96392.0,0.08627926]
[1739845863735,0.155612,96393.0,96392.0,0.09027926]
[1739845874687,0.155612,96393.0,96392.0,0.08627926]
[1739845875090,0.155612,96393.0,96392.0,0.09027926]
[1739845875339,0.155612,96393.0,96392.0,0.08627926]
[1739845875760,0.155612,96393.0,96392.0,0.08927926]
[1739845884378,1.298416,96393.0,96392.0,0.08927926]
[1739845884553,1.650915,96393.0,96392.0,0.00777926]
[1739845884807,0.25811565,96393.0,96392.0,0.00777926]
[1739845884989,2.451707,96393.0,96392.0,0.00777926]
[1739845885819,2.451707,96393.0,96392.0,0.00477926]
[1739845886019,1.595795,96393.0,96392.0,0.00477926]
[1739845886178,1.598795,96393.0,96392.0,0.00477926]
[1739845886510,1.595795,96393.0,96392.0,0.00477926]
[1739845886739,1.277481,96393.0,96392.0,0.00077926]
[1739845886955,1.274481,96393.0,96392.0,0.00077926]
[1739845887160,1.278481,96393.0,96392.0,0.00077926]
[1739845887367,1.280481,96393.0,96392.0,0.00077926]
[1739845887547,1.274481,96393.0,96392.0,0.00077926]
[1739845887952,1.277481,96393.0,96392.0,0.00077926]
[1739845888330,1.274481,96393.0,96392.0,0.00077926]
[1739845888538,1.275481,96393.0,96392.0,0.00077926]
[1739845888917,1.276481,96393.0,96392.0,0.00077926]
[1739845889348,1.275481,96393.0,96392.0,0.00077926]
[1739845889875,1.274481,96393.0,96392.0,0.00077926]
[1739845890000,1.275481,96393.0,96392.0,0.00077926]
[1739845890217,1.276481,96393.0,96392.0,0.00077926]
[1739845890417,1.275481,96393.0,96392.0,0.00077926]
[1739845890679,1.274481,96393.0,96392.0,0.00077926]
[1739845897182,0.508111,96393.0,96392.0,0.00077926]
[1739845897403,0.155612,96393.0,96392.0,0.00077926]
[1739845897550,2.451707,96393.0,96392.0,0.00077926]
[1739845898126,2.47569502,96393.0,96392.0,0.00077926]
[1739845898514,2.451707,96393.0,96392.0,0.00077926]
[1739845902963,2.601707,96393.0,96392.0,0.00077926]
[1739845905938,2.604707,96393.0,96392.0,0.00077926]
[1739845906990,2.62096172,96393.0,96392.0,0.00077926]
[1739845907390,2.61796172,96393.0,96392.0,0.00077926]
[1739845907609,2.62096172,96393.0,96392.0,0.00077926]
[1739845908703,2.62296172,96393.0,96392.0,0.00077926]
[1739845908901,2.62096172,96393.0,96392.0,0.00077926]
[1739845909105,2.61796172,96393.0,96392.0,0.00077926]
[1739845909309,2.62396172,96393.0,96392.0,0.00077926]
[1739845909867,2.62096172,96393.0,96392.0,0.00077926]
[1739845910098,2.62496172,96393.0,96392.0,0.00077926]
[1739845911309,0.305627,96384.0,96383.0,0.0003404]
[1739845911502,0.305627,96384.0,96346.0,0.155688]
[1739845911503,0.155643,96374.0,96373.0,0.0743788]
[1739845911708,2.451738,96374.0,96373.0,0.0743788]
[1739845911918,2.451738,96374.0,96372.0,0.00042216]
[1739845912126,2.296095,96373.0,96372.0,0.00042216]
[1739845912338,2.446095,96373.0,96372.0,0.00042216]
[1739845913098,0.155664,96361.0,96360.0,0.0453]
[1739845913349,2.205797,96361.0,96360.0,0.0454317]
[1739845913555,2.451759,96361.0,96360.0,0.0454317]
[1739845915463,2.47817038,96361.0,96360.0,0.0454317]
[1739845915700,2.47817038,96361.0,96360.0,0.0474317]
[1739845915878,2.62817038,96361.0,96360.0,0.0474317]
[1739845916101,2.62817038,96361.0,96360.0,0.0001317]
[1739845916310,2.73067403,96361.0,96360.0,0.0021317]
[1739845916513,2.73067403,96361.0,96360.0,0.0041317]
[1739845916738,0.155679,96352.0,96351.0,0.0754]
[1739845916997,2.451774,96352.0,96351.0,0.0754]
[1739845917766,2.451774,96352.0,96345.0,0.0003404]
[1739845917767,0.155688,96346.0,96345.0,0.0779404]
[1739845917968,2.451783,96346.0,96345.0,0.0779404]
[1739845919131,2.452783,96346.0,96345.0,0.0779404]
[1739845919494,2.451783,96346.0,96345.0,0.0779404]
[1739845919744,2.452783,96346.0,96345.0,0.0779404]
[1739845920216,2.453783,96346.0,96345.0,0.0779404]